bitfinex/quotes_BTCUSD_20240827
["timestamp","ask_amount","ask_price","bid_price","bid_amount"]
[1724769464225,2.06405512,62083.0,62082.0,0.002822]
[1724769464469,2.19296509,62083.0,62082.0,0.001822]
[1724769464695,2.04305512,62083.0,62082.0,0.000822]
[1724769464920,2.03181374,62083.0,62082.0,0.001822]
[1724769465153,1.54269929,62083.0,62082.0,0.001822]
[1724769465702,1.602785,62083.0,62082.0,0.002822]
[1724769465938,1.56500724,62083.0,62082.0,0.001822]
[1724769466167,1.57900724,62083.0,62082.0,0.002822]
[1724769466392,1.8158251,62083.0,62082.0,0.002822]
[1724769466634,2.03181913,62083.0,62082.0,0.001822]
[1724769466844,2.1575409,62083.0,62082.0,0.002822]
[1724769467061,2.03881913,62083.0,62082.0,0.002822]
[1724769467276,2.03181913,62083.0,62082.0,0.001822]
[1724769467496,0.805567,62068.0,62067.0,0.1904]
[1724769467722,1.35078803,62068.0,62067.0,0.1904]
[1724769467945,0.04747021,62075.0,62067.0,0.1904]
[1724769467946,0.36966521,62075.0,62068.0,0.3942]
[1724769468184,0.22299403,62077.0,62068.0,0.3942]
[1724769468416,0.483333,62069.0,62068.0,0.3942]
[1724769468634,0.805555,62069.0,62068.0,0.3942]
[1724769469075,1.28774245,62069.0,62068.0,0.3942]
[1724769470774,0.322239,62066.0,62064.0,0.4016]
[1724769471024,0.483379,62063.0,62062.0,0.18854]
[1724769471239,0.483379,62063.0,62062.0,0.00824]
[1724769471240,0.805632,62063.0,62062.0,0.00824]
[1724769472158,1.127885,62063.0,62062.0,0.00824]
[1724769472591,1.4389349,62063.0,62062.0,0.00824]
[1724769473053,1.4389349,62063.0,62062.0,0.00324]
[1724769473327,1.4389349,62063.0,62062.0,0.40484]
[1724769473328,1.127885,62063.0,62062.0,0.40484]
[1724769473543,0.483379,62063.0,62062.0,0.58514]
[1724769473769,0.805632,62063.0,62062.0,0.58514]
[1724769473983,0.005,62063.0,62062.0,0.58514]
[1724769474228,0.005,62063.0,62062.0,0.58614]
[1724769474441,0.009,62063.0,62062.0,0.58614]
[1724769474674,0.161126,62063.0,62062.0,0.58614]
[1724769474891,0.161126,62063.0,62062.0,0.58814]
[1724769475108,0.162126,62063.0,62062.0,0.58814]
[1724769475361,0.161126,62063.0,62062.0,0.58814]
[1724769475808,0.164126,62063.0,62062.0,0.58814]
[1724769477167,0.483379,62063.0,62062.0,0.58814]
[1724769477377,0.484379,62063.0,62062.0,0.58814]
[1724769477826,0.162126,62063.0,62062.0,0.58814]
[1724769478915,0.001,62063.0,62062.0,0.58814]
[1724769479126,0.162126,62063.0,62062.0,0.58814]
[1724769479341,0.001,62063.0,62062.0,0.58814]
[1724769480659,0.48089634,62063.0,62062.0,0.57874]
[1724769480939,0.48089634,62063.0,62062.0,0.00524]
[1724769480940,0.96659745,62063.0,62062.0,0.00524]
[1724769481152,1.85999748,62063.0,62062.0,0.00524]
[1724769481802,1.85899748,62063.0,62062.0,0.00324]
[1724769482019,1.83309748,62063.0,62062.0,0.00324]
[1724769482251,2.00706293,62063.0,62062.0,0.00324]
[1724769483125,1.85409748,62063.0,62062.0,0.00424]
[1724769483560,1.84009748,62063.0,62062.0,0.00424]
[1724769483791,1.51084448,62063.0,62062.0,0.00324]
[1724769483997,1.52484448,62063.0,62062.0,0.00424]
[1724769484221,1.67780993,62063.0,62062.0,0.00424]
[1724769484648,1.68080993,62063.0,62062.0,0.00324]
[1724769484871,1.68780993,62063.0,62062.0,0.00424]
[1724769485093,0.822632,62063.0,62062.0,0.61444]
[1724769485549,0.812632,62063.0,62062.0,0.61444]
[1724769486014,1.134885,62063.0,62062.0,0.61444]
[1724769486229,1.127885,62063.0,62062.0,0.61344]
[1724769486663,0.483379,62063.0,62062.0,0.61344]
[1724769486888,0.819632,62063.0,62062.0,0.61344]
[1724769487108,0.805632,62063.0,62062.0,0.61444]
[1724769487321,0.812632,62063.0,62062.0,0.61444]
[1724769487533,0.821632,62063.0,62062.0,0.61444]
[1724769487970,0.814632,62063.0,62062.0,0.61344]
[1724769488201,0.810632,62063.0,62062.0,0.61344]
[1724769488699,0.83687818,62063.0,62062.0,0.61344]
[1724769489592,0.83187818,62063.0,62062.0,0.61344]
[1724769489996,0.83187818,62063.0,62062.0,0.61544]
[1724769490692,0.50962518,62063.0,62062.0,0.61544]
[1724769491556,0.83187818,62063.0,62062.0,0.61544]
[1724769492441,0.50962518,62063.0,62062.0,0.61544]
[1724769494391,0.02624618,62063.0,62062.0,0.61544]
[1724769494600,0.18737218,62063.0,62062.0,0.61544]
[1724769495042,0.162126,62063.0,62062.0,0.61544]
[1724769495257,0.001,62063.0,62062.0,0.61544]
[1724769495704,0.162126,62063.0,62062.0,0.61544]
[1724769496169,0.001,62063.0,62062.0,0.61544]
[1724769496432,0.162126,62063.0,62062.0,0.61544]
[1724769496646,0.162126,62063.0,62062.0,0.61644]
[1724769496647,0.001,62063.0,62062.0,0.61644]
[1724769500412,0.001,62063.0,62062.0,0.678084]
[1724769500413,0.0019053,62063.0,62062.0,0.678084]
[1724769500654,0.0019053,62063.0,62062.0,0.61644]
[1724769501577,0.0019053,62063.0,62062.0,0.77640545]
[1724769501818,0.47989634,62081.0,62080.0,0.5761]
[1724769502051,0.36948571,62089.0,62082.0,0.3879]
[1724769502052,0.322134,62086.0,62082.0,0.3879]
[1724769502305,0.161069,62085.0,62082.0,0.44551]
[1724769502804,0.16107,62085.0,62082.0,0.44551]
[1724769503042,0.34736272,62089.0,62082.0,0.44551]
[1724769503272,0.34736272,62089.0,62082.0,0.63961]
[1724769503273,0.00190421,62083.0,62082.0,0.63961]
[1724769503957,0.00290421,62083.0,62082.0,0.63961]
[1724769505147,0.00290421,62083.0,62082.0,0.581]
[1724769505148,0.48612721,62083.0,62082.0,0.581]
[1724769505368,0.48612721,62083.0,62082.0,0.01]
[1724769505369,0.80827621,62083.0,62082.0,0.01]
[1724769505606,1.29039066,62083.0,62082.0,0.01]
[1724769505855,1.41292209,62083.0,62082.0,0.01]
[1724769506078,1.34341186,62083.0,62082.0,0.01]
[1724769506302,1.34341186,62083.0,62073.0,0.3947]
[1724769506303,0.483294,62074.0,62073.0,0.3947]
[1724769507668,0.04754223,62079.0,62074.0,0.001]
[1724769507891,0.161093,62076.0,62074.0,0.001]
[1724769508112,0.322172,62079.0,62074.0,0.001]
[1724769508327,0.161095,62075.0,62074.0,0.001]
[1724769508543,0.02524007,62076.0,62074.0,0.001]
[1724769508765,0.02524007,62076.0,62075.0,0.06257083]
[1724769509759,0.161095,62075.0,62074.0,0.001]
[1724769509974,0.161095,62075.0,62074.0,0.005]
[1724769510410,0.161095,62075.0,62074.0,0.001]
[1724769510852,0.02524007,62076.0,62074.0,0.001]
[1724769511064,0.02524007,62076.0,62075.0,0.05949]
[1724769511537,0.18633207,62076.0,62075.0,0.05949]
[1724769511799,0.18633207,62076.0,62075.0,0.06349]
[1724769512250,0.02524007,62076.0,62075.0,0.66409]
[1724769512467,0.16108,62081.0,62076.0,0.4]
[1724769512905,0.161085,62079.0,62076.0,0.4]
[1724769513125,0.161085,62079.0,62076.0,0.46057939]
[1724769513338,0.161083,62080.0,62076.0,0.46057939]
[1724769513803,0.161081,62081.0,62076.0,0.46057939]
[1724769514062,0.005,62081.0,62080.0,0.001]
[1724769514288,0.161077,62082.0,62081.0,0.3847]
[1724769515399,0.483231,62082.0,62081.0,0.3847]
[1724769515682,0.00090421,62083.0,62081.0,0.3857]
[1724769515896,0.002,62082.0,62081.0,0.5749]
[1724769516126,0.002,62082.0,62081.0,0.63239]
[1724769516368,0.008,62082.0,62081.0,0.63239]
[1724769516606,0.008,62082.0,62081.0,0.79235545]
[1724769516607,0.006,62082.0,62081.0,0.79235545]
[1724769516821,0.00090421,62083.0,62082.0,0.5919]
[1724769517049,0.00090421,62083.0,62082.0,0.75286545]
[1724769517050,0.00490421,62083.0,62082.0,0.75286545]
[1724769517281,0.00490421,62083.0,62082.0,0.85139322]
[1724769517282,0.00090421,62083.0,62082.0,0.85139322]
[1724769517949,0.00090421,62083.0,62082.0,0.95139322]
[1724769519060,0.00190421,62083.0,62082.0,0.96539322]
[1724769519281,0.00290421,62083.0,62082.0,0.96639322]
[1724769519556,0.00290421,62083.0,62082.0,0.95139322]
[1724769519557,0.00090421,62083.0,62082.0,0.95139322]
[1724769519768,0.00190421,62083.0,62082.0,0.96639322]
[1724769519991,0.00290421,62083.0,62082.0,0.96639322]
[1724769520203,0.00190421,62083.0,62082.0,0.96539322]
[1724769520431,0.00290421,62083.0,62082.0,0.96639322]
[1724769520859,0.00190421,62083.0,62082.0,0.96539322]
[1724769521310,0.00090421,62083.0,62082.0,0.95139322]
[1724769521521,0.00190421,62083.0,62082.0,0.96539322]
[1724769521975,0.00190421,62083.0,62082.0,0.98839322]
[1724769522194,0.00190421,62083.0,62082.0,0.97539322]
[1724769522421,0.00290421,62083.0,62082.0,0.98939322]
[1724769522674,0.00190421,62083.0,62082.0,0.98839322]
[1724769522882,0.00190421,62083.0,62082.0,0.97539322]
[1724769523119,0.00090421,62083.0,62082.0,0.97439322]
[1724769523333,0.00190421,62083.0,62082.0,0.98839322]
[1724769523555,0.00190421,62083.0,62082.0,0.98939322]
[1724769523556,0.00290421,62083.0,62082.0,0.98939322]
[1724769523822,0.00090421,62098.0,62097.0,0.001]
[1724769524036,0.00090421,62098.0,62097.0,0.57828563]
[1724769524311,0.02523115,62105.0,62097.0,0.76888563]
[1724769524577,0.00090421,62109.0,62108.0,0.1916]
[1724769524800,0.00090421,62109.0,62108.0,0.89188434]
[1724769525054,0.47989634,62124.0,62123.0,0.001]
[1724769525263,0.47989634,62124.0,62123.0,0.73628444]
[1724769525491,0.009053,62126.0,62125.0,0.5935]
[1724769525722,0.009053,62126.0,62125.0,0.85346545]
[1724769526162,0.009053,62126.0,62125.0,0.6935]
[1724769527093,0.010053,62126.0,62125.0,0.6955]
[1724769528001,0.010053,62126.0,62125.0,0.7095]
[1724769528230,0.010053,62126.0,62125.0,0.78896603]
[1724769530824,0.010053,62126.0,62125.0,0.94893148]
[1724769531447,0.010053,62126.0,62125.0,0.97193148]
[1724769535396,0.010053,62126.0,62125.0,0.98198448]
[1724769536044,0.010053,62126.0,62125.0,0.19646603]
[1724769536461,0.010053,62126.0,62125.0,0.35643148]
[1724769538982,0.010053,62126.0,62125.0,0.95323148]
[1724769540036,0.010053,62126.0,62125.0,0.79326603]
[1724769540243,0.171016,62126.0,62125.0,0.19646603]
[1724769540454,0.010053,62126.0,62125.0,0.017]
[1724769540673,0.171016,62126.0,62125.0,0.017]
[1724769540873,0.010053,62126.0,62125.0,0.017]
[1724769541093,0.010053,62126.0,62125.0,0.02021893]
[1724769541304,0.010053,62126.0,62125.0,0.07269082]
[1724769541955,0.010053,62126.0,62125.0,0.62315627]
[1724769543074,0.010053,62126.0,62125.0,0.80445627]
[1724769543291,0.010053,62126.0,62125.0,0.80123734]
[1724769543521,0.010053,62126.0,62125.0,0.92423734]
[1724769544820,0.00090421,62127.0,62126.0,0.002]
[1724769545028,0.009053,62134.0,62133.0,0.46987378]
[1724769545237,0.009053,62134.0,62133.0,1.14853923]
[1724769545684,0.009053,62134.0,62133.0,0.87046545]
[1724769546754,0.010053,62134.0,62133.0,0.88446545]
[1724769546961,0.010053,62134.0,62133.0,0.973012]
[1724769547483,0.010053,62134.0,62133.0,1.25108578]
[1724769547730,0.010053,62134.0,62133.0,1.25208578]
[1724769548388,0.0009053,62141.0,62138.0,0.5724]
[1724769548609,0.0009053,62141.0,62140.0,0.28007378]
[1724769548830,0.0009053,62141.0,62140.0,1.01365649]
[1724769549061,0.009053,62145.0,62140.0,1.01365649]
[1724769549062,0.009053,62145.0,62144.0,0.002]
[1724769549290,0.009053,62145.0,62144.0,0.74258252]
[1724769549503,0.009053,62145.0,62144.0,0.86558252]
[1724769549722,0.009053,62145.0,62144.0,1.02554797]
[1724769550182,0.009053,62145.0,62144.0,1.03954797]
[1724769550404,0.009053,62145.0,62144.0,1.02554797]
[1724769550620,0.009053,62145.0,62144.0,1.02454797]
[1724769550831,0.009053,62145.0,62144.0,1.0213309]
[1724769551057,0.009053,62145.0,62144.0,0.9983309]
[1724769551327,0.009053,62145.0,62144.0,1.0123309]
[1724769551993,0.009053,62145.0,62144.0,1.0263309]
[1724769552676,0.009053,62145.0,62144.0,1.0493309]
[1724769553968,0.009053,62145.0,62144.0,1.0503309]
[1724769556321,0.009053,62145.0,62144.0,1.2112469]
[1724769556533,0.009053,62146.0,62145.0,0.002]
[1724769556764,0.009053,62146.0,62145.0,0.85518227]
[1724769556975,0.009053,62146.0,62145.0,1.01609527]
[1724769557188,0.009053,62160.0,62145.0,1.01609527]
[1724769557189,0.009053,62160.0,62154.0,0.5842]
[1724769557409,0.009053,62160.0,62154.0,0.86716545]
[1724769559398,0.009053,62160.0,62154.0,0.88116545]
[1724769559863,0.009053,62160.0,62154.0,0.89551452]
[1724769560735,0.009053,62160.0,62154.0,0.90951452]
[1724769560940,0.009053,62160.0,62154.0,1.00046597]
[1724769561161,0.00906401,62166.0,62160.0,0.001]
[1724769561379,0.040953,62167.0,62166.0,0.5997]
[1724769561598,0.040953,62167.0,62166.0,0.86402318]
[1724769561826,0.040953,62167.0,62166.0,0.98702318]
[1724769562048,0.50549315,62199.0,62184.0,3.72058299]
[1724769562268,0.48029634,62199.0,62184.0,0.96267378]
[1724769562487,0.48029634,62199.0,62184.0,1.12163923]
[1724769563374,0.48029634,62199.0,62184.0,0.84356545]
[1724769563584,0.0004,62199.0,62184.0,0.92062132]
[1724769563809,0.00494622,62189.0,62184.0,0.93460769]
[1724769564021,0.00494622,62189.0,62185.0,0.28296545]
[1724769564483,0.00494622,62189.0,62188.0,0.001]
[1724769564703,0.00494622,62189.0,62188.0,0.57768039]
[1724769564913,0.00494622,62189.0,62188.0,0.74563184]
[1724769565155,0.00494622,62189.0,62188.0,0.96183184]
[1724769565357,0.0004,62199.0,62198.0,0.4126]
[1724769565581,0.0004,62199.0,62198.0,1.06639923]
[1724769566626,0.0004,62199.0,62198.0,1.08039923]
[1724769567073,0.0004,62199.0,62198.0,1.06639923]
[1724769567282,0.0004,62199.0,62198.0,1.08039923]
[1724769567487,0.0004,62199.0,62198.0,1.09438334]
[1724769567926,0.0004,62199.0,62198.0,1.09338334]
[1724769568138,0.0004,62199.0,62198.0,1.07510334]
[1724769568348,0.48273,62199.0,62198.0,1.07510334]
[1724769568554,0.43935972,62199.0,62198.0,1.07610334]
[1724769569018,0.29625404,62199.0,62198.0,1.07610334]
[1724769570061,0.29625404,62199.0,62198.0,1.07510334]
[1724769570476,0.29625404,62199.0,62198.0,1.07610334]
[1724769571383,0.08693175,62199.0,62198.0,1.07610334]
[1724769571657,0.00904201,62208.0,62207.0,0.001]
[1724769571897,0.00904201,62208.0,62207.0,0.55536545]
[1724769572124,0.49130201,62208.0,62207.0,0.67836545]
[1724769572356,0.49130201,62208.0,62207.0,0.746302]
[1724769573510,0.49130201,62208.0,62207.0,0.760302]
[1724769574209,0.49130201,62208.0,62207.0,0.774302]
[1724769575280,0.49130201,62208.0,62207.0,0.78855797]
[1724769577883,0.49130201,62208.0,62207.0,0.39415797]
[1724769578122,0.49130201,62208.0,62207.0,0.37115797]
[1724769579464,0.49130201,62208.0,62207.0,0.35715797]
[1724769580385,0.49130201,62208.0,62207.0,0.37115797]
[1724769580601,0.49130201,62208.0,62207.0,0.39415797]
[1724769581976,0.49130201,62208.0,62207.0,0.98505797]
[1724769584058,0.49130201,62208.0,62207.0,0.98605797]
[1724769584291,0.49130201,62208.0,62207.0,1.14681097]
[1724769584511,0.49130201,62208.0,62207.0,0.98605797]
[1724769586246,0.49130201,62208.0,62207.0,1.2077901]
[1724769591951,0.0004,62219.0,62217.0,0.3869]
[1724769592189,0.0004,62219.0,62217.0,0.73182866]
[1724769592414,0.49122201,62218.0,62217.0,0.73182866]
[1724769593314,0.49122201,62218.0,62217.0,0.74582866]
[1724769593565,0.49122201,62218.0,62217.0,0.75982866]
[1724769594014,0.49122201,62218.0,62217.0,0.34992866]
[1724769594264,0.49122201,62218.0,62217.0,0.27494726]
[1724769594504,0.49122201,62218.0,62217.0,0.28894726]
[1724769594732,0.49122201,62218.0,62217.0,0.30294726]
[1724769595218,0.49122201,62218.0,62217.0,0.28896545]
[1724769595689,0.49122201,62218.0,62217.0,0.129]
[1724769596183,0.49122201,62218.0,62217.0,0.115]
[1724769596681,0.49122201,62218.0,62217.0,0.101]
[1724769596910,1.40454701,62218.0,62217.0,0.014]
[1724769597160,1.72599701,62218.0,62217.0,0.028]
[1724769597406,1.72599701,62218.0,62217.0,0.014]
[1724769597643,1.40454701,62218.0,62217.0,0.028]
[1724769597882,1.40454701,62218.0,62217.0,0.014]
[1724769598118,1.40454701,62218.0,62213.0,0.001]
[1724769598119,0.591906,62214.0,62213.0,0.001]
[1724769598348,0.59188,62214.0,62213.0,0.001]
[1724769600040,0.59188,62214.0,62213.0,0.015]
[1724769600545,0.752615,62214.0,62213.0,0.015]
[1724769600765,0.59188,62214.0,62213.0,0.015]
[1724769601463,0.59188,62214.0,62213.0,0.023]
[1724769602219,0.48218,62214.0,62213.0,0.023]
[1724769604145,0.752615,62214.0,62213.0,0.023]
[1724769604401,1.074086,62214.0,62213.0,0.022]
[1724769604902,1.074086,62214.0,62199.0,0.00082]
[1724769604903,0.1097,62203.0,62202.0,0.001]
[1724769605155,0.59188,62203.0,62202.0,0.001]
[1724769606118,0.48218,62203.0,62202.0,0.001]
[1724769606370,0.48218,62203.0,62202.0,0.015]
[1724769607300,0.48218,62203.0,62202.0,0.57056545]
[1724769607525,0.48218,62203.0,62202.0,0.7241075]
[1724769607980,0.48218,62203.0,62202.0,0.7371075]
[1724769610251,0.48218,62203.0,62202.0,0.36958332]
[1724769610751,0.48218,62203.0,62202.0,0.30204127]
[1724769612663,0.48218,62203.0,62202.0,0.14207582]
[1724769613133,0.48218,62203.0,62202.0,0.04207582]
[1724769615195,0.48218,62203.0,62202.0,0.028]
[1724769615439,0.59188,62203.0,62202.0,0.028]
[1724769615662,0.752643,62203.0,62202.0,0.028]
[1724769615887,1.07417,62203.0,62202.0,0.027]
[1724769616112,1.395697,62203.0,62202.0,0.027]
[1724769616560,1.07417,62203.0,62202.0,0.027]
[1724769617383,1.77739458,62203.0,62202.0,0.027]
[1724769617590,2.19401323,62203.0,62202.0,0.027]
[1724769617839,2.58041403,62203.0,62202.0,0.02315918]
[1724769618074,1.1264,62200.0,62199.0,0.00082]
[1724769618299,2.11526539,62200.0,62199.0,0.00082]
[1724769618512,2.09008845,62200.0,62199.0,0.00082]
[1724769618969,2.17658845,62200.0,62199.0,0.00082]
[1724769619183,2.29565272,62200.0,62199.0,0.00082]
[1724769619423,2.27178243,62200.0,62199.0,0.00082]
[1724769619639,1.78927398,62200.0,62199.0,0.00082]
[1724769619862,1.42012354,62200.0,62199.0,0.00082]
[1724769620099,1.381537,62200.0,62199.0,0.00182]
[1724769620336,1.059994,62200.0,62199.0,0.00182]
[1724769620589,0.729451,62200.0,62199.0,0.00082]
[1724769620821,1.050994,62200.0,62199.0,0.00082]
[1724769621044,1.067994,62200.0,62199.0,0.00282]
[1724769621251,0.57668,62200.0,62199.0,0.00182]
[1724769621472,0.49018,62200.0,62199.0,0.00182]
[1724769621689,0.49818,62200.0,62199.0,0.16378545]
[1724769622414,0.48218,62200.0,62199.0,0.23731118]
[1724769622652,0.48218,62200.0,62199.0,0.334096]
[1724769622867,0.48218,62200.0,62199.0,0.26178545]
[1724769623717,0.48318,62200.0,62199.0,0.11614145]
[1724769623923,0.48318,62200.0,62199.0,0.10182]
[1724769624133,0.48718,62200.0,62199.0,0.10182]
[1724769624337,0.48218,62200.0,62199.0,0.10182]
[1724769624751,0.48318,62200.0,62199.0,0.10882]
[1724769625017,0.48218,62200.0,62199.0,0.10182]
[1724769625220,0.48218,62200.0,62199.0,0.00182]
[1724769625426,0.48318,62200.0,62199.0,0.00882]
[1724769625846,0.48418,62200.0,62199.0,0.16878545]
[1724769626483,0.48418,62200.0,62199.0,0.26878545]
[1724769626686,0.48318,62200.0,62199.0,0.6921156]
[1724769627119,0.48418,62200.0,62199.0,0.6921156]
[1724769627786,0.48418,62200.0,62199.0,0.9147156]
[1724769628622,0.48318,62200.0,62199.0,0.9077156]
[1724769629040,0.48318,62200.0,62199.0,0.9137156]
[1724769629041,0.48418,62200.0,62199.0,0.9137156]
[1724769629251,0.48418,62200.0,62199.0,0.9147156]
[1724769629479,0.48318,62200.0,62199.0,0.9147156]
[1724769629672,0.48418,62200.0,62199.0,0.9247156]
[1724769631126,0.48398653,62200.0,62199.0,0.9247156]
[1724769641699,0.48398653,62200.0,62199.0,0.17778545]
[1724769642578,0.48398653,62200.0,62199.0,0.01782]
[1724769643240,0.89202953,62200.0,62199.0,0.01682]
[1724769643456,1.39084353,62200.0,62199.0,0.01682]
[1724769643673,1.61179163,62200.0,62199.0,0.00682]
[1724769643889,1.77175708,62200.0,62199.0,0.01082]
[1724769644153,0.74595198,62200.0,62199.0,0.01082]
[1724769644375,0.74595198,62200.0,62199.0,0.01882]
[1724769644376,0.58598653,62200.0,62199.0,0.01882]
[1724769644586,0.58598653,62200.0,62199.0,0.01182]
[1724769645014,0.58688853,62200.0,62199.0,0.01182]
[1724769645193,0.58588853,62200.0,62199.0,0.00182]
[1724769645662,0.58688853,62200.0,62199.0,0.00182]
[1724769646099,0.58588853,62200.0,62199.0,0.00182]
[1724769646546,0.58588853,62200.0,62199.0,0.00582]
[1724769648536,0.58588853,62200.0,62199.0,0.00682]
[1724769648752,0.58588853,62200.0,62199.0,0.00582]
[1724769648964,0.67671928,62200.0,62199.0,0.00082]
[1724769649175,1.06820253,62200.0,62199.0,0.00382]
[1724769649381,1.06920253,62200.0,62199.0,0.00982]
[1724769649596,1.52990928,62200.0,62199.0,0.00982]
[1724769649817,1.52890928,62200.0,62199.0,0.00382]
[1724769650045,1.06820253,62200.0,62199.0,0.00382]
[1724769650262,1.06820253,62200.0,62199.0,0.00782]
[1724769650781,0.48288853,62200.0,62199.0,0.00882]
[1724769651690,0.48288853,62200.0,62199.0,0.00582]
[1724769658433,1.28674553,62200.0,62199.0,0.00482]
[1724769660168,0.48288853,62200.0,62199.0,0.00582]
[1724769661913,0.48288853,62200.0,62199.0,0.22300503]
[1724769662572,0.48288853,62200.0,62199.0,0.00582]
[1724769662785,0.64365953,62200.0,62199.0,0.00182]
[1724769662991,0.48288853,62200.0,62199.0,0.00582]
[1724769663192,0.64365953,62200.0,62199.0,0.00582]
[1724769663459,1.38335458,62200.0,62199.0,0.00482]
[1724769663666,1.70489758,62200.0,62199.0,0.00082]
[1724769663895,1.73008744,62200.0,62199.0,0.00082]
[1724769664319,1.77769878,62200.0,62199.0,0.00082]
[1724769664729,1.77769878,62200.0,62199.0,0.00682]
[1724769664935,1.77769878,62200.0,62199.0,0.01782]
[1724769664936,1.75350892,62200.0,62199.0,0.01782]
[1724769665147,1.75350892,62200.0,62199.0,0.01182]
[1724769665394,1.70489758,62200.0,62199.0,0.00082]
[1724769666026,1.92699362,62200.0,62199.0,0.00082]
[1724769666665,2.50472475,62200.0,62199.0,0.00082]
[1724769666877,2.27390603,62200.0,62199.0,0.00082]
[1724769667089,2.61503043,62200.0,62199.0,0.00082]
[1724769667306,2.52117728,62200.0,62199.0,0.00082]
[1724769667960,2.52117728,62200.0,62199.0,0.00182]
[1724769668450,2.52117728,62200.0,62199.0,0.00082]
[1724769668657,2.52117728,62200.0,62199.0,0.00182]
[1724769669117,2.53217728,62200.0,62199.0,0.00282]
[1724769669324,2.45435149,62200.0,62199.0,0.00182]
[1724769669539,2.66544753,62200.0,62199.0,0.00082]
[1724769669797,2.66544753,62200.0,62199.0,0.00182]
[1724769670236,1.67006204,62199.0,62198.0,0.00082]
[1724769670446,2.62015748,62199.0,62198.0,0.00082]
[1724769670656,0.22209604,62179.0,62172.0,0.001]
[1724769670870,0.160837,62175.0,62173.0,0.001]
[1724769671111,0.64282453,62174.0,62173.0,0.001]
[1724769671326,0.48198653,62174.0,62173.0,0.001]
[1724769672431,0.48198653,62174.0,62173.0,0.011]
[1724769673089,0.48198653,62174.0,62173.0,0.3858]
[1724769673322,0.48198653,62174.0,62173.0,0.5744]
[1724769673540,0.48198653,62174.0,62173.0,0.74736545]
[1724769673779,0.48298653,62174.0,62173.0,0.74736545]
[1724769673989,0.48298653,62174.0,62173.0,0.945102]
[1724769674657,0.48298653,62174.0,62173.0,0.84736545]
[1724769674882,0.48298653,62174.0,62173.0,0.86156473]
[1724769675112,0.48198653,62174.0,62173.0,0.83856473]
[1724769675567,0.48198653,62174.0,62173.0,0.86656473]
[1724769675776,0.48198653,62174.0,62173.0,0.85256473]
[1724769675990,0.48198653,62174.0,62173.0,0.83856473]
[1724769676234,0.48198653,62174.0,62173.0,0.9608212]
[1724769676941,0.48198653,62174.0,62173.0,0.87556473]
[1724769677155,0.48198653,62174.0,62173.0,0.86156473]
[1724769677793,0.48198653,62174.0,62173.0,0.87256473]
[1724769678012,0.48198653,62174.0,62173.0,0.86156473]
[1724769678441,0.48198653,62174.0,62173.0,0.87556473]
[1724769678841,0.48198653,62174.0,62173.0,0.88956473]
[1724769679090,0.48198653,62174.0,62173.0,0.9772212]
[1724769679305,0.48198653,62174.0,62173.0,0.9492212]
[1724769679525,0.48198653,62174.0,62173.0,0.9772212]
[1724769679964,0.48198653,62174.0,62173.0,0.9780432]
[1724769680414,0.48198653,62174.0,62173.0,0.9790432]
[1724769680415,0.48193653,62174.0,62173.0,0.9790432]
[1724769680669,0.48193653,62174.0,62173.0,0.9780432]
[1724769682943,0.48193653,62174.0,62173.0,0.86738673]
[1724769683597,0.48193653,62174.0,62173.0,0.70742128]
[1724769683811,0.48193653,62174.0,62173.0,0.51882128]
[1724769684895,0.48193653,62174.0,62173.0,0.49082128]
[1724769685119,0.48193653,62174.0,62173.0,0.49782128]
[1724769685322,0.48193653,62174.0,62173.0,0.50882128]
[1724769685755,0.48193653,62174.0,62173.0,0.49782128]
[1724769685972,0.48193653,62174.0,62173.0,0.49082128]
[1724769686192,0.48193653,62174.0,62173.0,0.50182128]
[1724769686637,0.48193653,62174.0,62173.0,0.49082128]
[1724769686852,0.48193653,62174.0,62173.0,0.487622]
[1724769687292,0.48193653,62174.0,62173.0,0.394622]
[1724769687716,0.48193653,62174.0,62173.0,0.387622]
[1724769687922,0.48193653,62174.0,62173.0,0.394622]
[1724769689877,0.48193653,62174.0,62173.0,0.894622]
[1724769694191,0.48193653,62174.0,62173.0,0.519822]
[1724769695075,0.48193653,62174.0,62173.0,0.518822]
[1724769695316,1.44609398,62174.0,62173.0,0.518822]
[1724769695566,2.06145285,62174.0,62173.0,0.518822]
[1724769695796,2.51555373,62174.0,62173.0,0.518822]
[1724769696039,2.42142801,62174.0,62173.0,0.518822]
[1724769696251,2.42142801,62174.0,62173.0,0.500822]
[1724769696470,2.58239346,62174.0,62173.0,0.500822]
[1724769696686,2.26371646,62174.0,62173.0,0.501822]
[1724769696932,2.58339346,62174.0,62173.0,0.500822]
[1724769697841,2.58339346,62174.0,62152.0,0.001]
[1724769697842,0.160893,62153.0,62152.0,0.001]
[1724769698070,0.64282953,62153.0,62152.0,0.001]
[1724769698294,0.48193653,62153.0,62152.0,0.001]
[1724769698521,0.64282953,62153.0,62152.0,0.001]
[1724769698750,0.321792,62152.0,62146.0,0.3582]
[1724769698968,0.160906,62148.0,62144.0,0.001821]
[1724769699182,0.0847,62155.0,62144.0,0.0583931]
[1724769699183,0.48093653,62147.0,62144.0,0.0583931]
[1724769700111,0.48093653,62147.0,62146.0,0.006]
[1724769700329,0.48093653,62147.0,62146.0,0.5717]
[1724769702122,0.48093653,62147.0,62146.0,0.5657]
[1724769702362,0.48093653,62147.0,62146.0,0.5797]
[1724769703223,0.48093653,62147.0,62146.0,0.5917]
[1724769704102,0.48093653,62147.0,62146.0,0.75166545]
[1724769705197,0.48093653,62147.0,62146.0,0.5917]
[1724769705432,0.48093653,62147.0,62146.0,0.026]
[1724769705681,0.52903018,62147.0,62146.0,0.026]
[1724769705928,0.48093653,62147.0,62146.0,0.026]
[1724769710041,0.48093653,62147.0,62146.0,0.5678]
[1724769713814,0.48093653,62147.0,62146.0,0.3803]
[1724769714447,0.48093653,62147.0,62146.0,0.381123]
[1724769720397,0.48093653,62147.0,62146.0,0.026823]
[1724769722172,0.48093653,62147.0,62146.0,0.419123]
[1724769725181,0.64184453,62147.0,62146.0,0.026823]
[1724769726515,0.96366153,62147.0,62146.0,0.026823]
[1724769726979,0.64274983,62147.0,62146.0,0.026823]